Cogmind - Beta 16 @@@ ROGUE MODE // 2025.11.02 @ 14:41:59 Player: TH-3000 Result: Destroyed by G-47 Trooper with Particle Gun Performance ------------- Evolutions (0) 0 Regions Visited (1) 200 Robots Destroyed (6) 30 Value Destroyed (149) 149 Prototype IDs (0) 0 Alien Tech Used (0) 0 Bonus (0) 0 TOTAL SCORE: 379 Bonus ------- None Cogmind --------- Core Integrity 0/250 Matter 300/300 Energy 100/100 System Corruption 0% Temperature Cool (9) Movement Walking (120) Location -10/Materials Parts ------- > --- POWER (1) -------- (None) > --- PROPULSION (2) --- Aluminum Leg Aluminum Leg > --- UTILITY (2) ------ Small Storage Unit Improved Terrain Scanner > --- WEAPON (2) ------- Light Assault Rifle > --- INVENTORY (8) ---- Small Storage Unit Peak State ------------ > --- POWER ------------ Ion Engine > --- PROPULSION ------- Light Treads Light Treads > --- UTILITY ---------- Small Storage Unit Improved Terrain Scanner > --- WEAPON ----------- Assault Rifle Light Assault Rifle > --- INVENTORY -------- Ion Engine Light Ion Engine Small Storage Unit EM Pulse Gun [Rating: 9] Favorites ----------- Power Ion Engine Engine Ion Engine Propulsion Light Treads Treads Light Treads Leg Aluminum Leg Utility Small Storage Unit Device Improved Terrain Scanner Storage Small Storage Unit Weapon Light Assault Rifle Energy Gun EM Pulse Gun Ballistic Gun Light Assault Rifle Special Weapon Welding Torch Build | -11 -10 ------- Run | Yrd Mat Slots Evolved . | . . Power . | . . Propulsion . | . . Utility . | . . Weapon . | . . Parts Attached 15 | 8 7 Power 3 | 1 2 Engine 3 | 1 2 Core . | . . Reactor . | . . Propulsion 4 | 2 2 Treads 2 | 2 . Leg 2 | . 2 Wheel . | . . Hover . | . . Flight . | . . Utility 3 | 3 . Device 1 | 1 . Storage 2 | 2 . Processor . | . . Hackware . | . . Protection . | . . Artifact . | . . Weapon 5 | 2 3 Energy Gun 1 | . 1 Energy Cannon . | . . Ballistic Gun 2 | 2 . Ballistic Cannon . | . . Launcher . | . . Special Weapon 2 | . 2 Impact Weapon . | . . Slashing Weapon . | . . Piercing Weapon . | . . Special Melee Weapon . | . . Unidentified Prototypes . | . . Parts Lost 9 | . 9 Power 3 | . 3 Propulsion 2 | . 2 Utility . | . . Weapon 4 | . 4 Highest Loss Streak 8 | . 8 To Critical Strikes . | . . Average Backups 5 | 3 6 Power 1 | 1 1 Propulsion 1 | . 1 Utility . | . 1 Weapon 1 | . 1 Tool/Special . | . . Unused Backups 1 | . 1 Power 1 | . 1 Propulsion . | . . Utility . | . . Weapon . | . . Tool/Special . | . . Average Slot Usage (%) 97 | . 97 Engine 12 | . 12 Treads 25 | . 25 Leg 2 | . 2 Device 14 | . 14 Storage 14 | . 14 Energy Gun 3 | . 3 Ballistic Gun 11 | . 11 Special Weapon 10 | . 10 Peak Build Rating 9 | 9 9 Average Rating 8 | 7 8 On Entrance 4 | . 9 Avg Prop Armor Cover (%) . | . . Naked Turns . | . . Heaviest Build 18 | 18 14 Greatest Support 40 | 40 40 Greatest Overweight (x) . | . . Average Overweight (x) . | . . Largest Inventory Capacity 8 | 8 8 Average Capacity 7 | 7 8 Most Carried 8 | 6 8 Average Carried 5 | 3 6 Final Capacity 8 | 8 8 Final Carried 6 | 6 1 Class Distribution -------------------- 100% | Mutant Dominant Class ---------------- Mutant | -10/Materials Resources | -11 -10 ----------- Run | Yrd Mat Matter Collected 454 | 312 142 Remotely . | . . Salvage Created 310 | 115 195 Parts 16 | 6 10 Haulers Intercepted . | . . Recyclers Shooed 1 | . 1 Parts Field Recycled . | . . Retrieved Matter . | . . Parts Self-Destructed . | . . Prevented . | . . Parts Restored . | . . Kills | -11 -10 ------- Run | Yrd Mat Combat Hostiles Destroyed 4 | . 4 Guns 3 | . 3 Cannons 1 | . 1 Classes Destroyed 3 | 2 1 Tunneler 1 | 1 . Recycler 1 | 1 . Grunt 4 | . 4 Best Kill Streak 2 | 1 2 Combat Bots Only 2 | . 2 Max Kills in Single Turn 1 | 1 1 Gunslinging . | . . Exploded . | . . Melee . | . . Uniques/NPCs Destroyed . | . . Combat | -11 -10 -------- Run | Yrd Mat Hostile Shots Fired 111 | . 111 Missed 21 | . 21 Hits 90 | . 90 Projectile 90 | . 90 Critical Strikes 4 | . 4 Damage Taken 1233 | . 1233 Core 265 | . 265 Absorbed by Shields . | . . Core Remaining (%) 100 | 100 . Volleys Fired 56 | 8 48 Largest 2 | 2 2 Hottest 60 | 40 60 Shots Fired 107 | 16 91 Gun 74 | 16 58 Cannon . | . . Launcher . | . . Special 33 | . 33 Kinetic 52 | 16 36 Thermal 33 | . 33 Explosive . | . . Electromagnetic 22 | . 22 Robot Hit Streak 11 | 5 11 Robot Miss Streak 4 | 3 4 Penetration Max . | . . Secondary Targets . | . . Shots Hit Robots 61 | 9 52 Core Hits 22 | 3 19 Critical Kills . | . . Critical Parts Destroyed . | . . Critical Strikes 1 | . 1 Corrupt 1 | . 1 Melee Attacks . | . . Impact . | . . Slashing . | . . Piercing . | . . Sneak Attacks . | . . Combat Hostiles . | . . Follow-up Attacks . | . . Damage Inflicted 609 | 93 516 Guns 552 | 93 459 Cannons . | . . Explosions . | . . Melee . | . . Ramming 23 | . 23 Kinetic 354 | 93 261 Thermal 34 | . 34 Explosive . | . . Electromagnetic 198 | . 198 Impact . | . . Slashing . | . . Piercing . | . . Highest Corruption . | . . Average Corruption . | . . Corruption Purged . | . . Corruption Blocked . | . . Overload Shots . | . . Overflow Damage . | . . Projectiles . | . . Explosions . | . . Melee . | . . Knockbacks . | . . Impact . | . . Kinetic . | . . Secondary . | . . Self-Inflicted Damage . | . . Shots . | . . Rammed 1 | . 1 Targets Rammed 12 | . 12 Kicked 11 | . 11 Crushed . | . . Highest Temperature 206 | . 206 Average Temperature 61 | . 61 Received Heat Transfer 768 | . 768 Siege Activations . | . . Martial Activations . | . . Shielding Activations . | . . Robots Disrupted . | . . Combat Hostiles . | . . Robots Corrupted . | . . Combat Hostiles . | . . Parts Fried 1 | . 1 Impact Corruptions . | . . Robots Melted . | . . Combat Hostiles . | . . Parts Melted . | . . Heat Transferred 250 | . 250 Parts Sabotaged . | . . Parts Stolen . | . . Parts Stripped . | . . Power Chain Reactions . | . . Alert | -11 -10 ------- Run | Yrd Mat Maximum Alert Level . | . . Low Security (%) 100 | 100 100 Level 1 . | . . Level 2 . | . . Level 3 . | . . Level 4 . | . . Level 5 . | . . High Security . | . . Max Security . | . . Peak Influence 75 | 5 75 Initial . | . . Average 7 | . 10 Influence Increases 150 | 10 140 Destroy 0b10 Robot/C 80 | . 80 Destroy 0b10 Robot/NC 10 | 10 . Lose Combat Pursuer 60 | . 60 Influence Decreases 150 | 10 140 Time Decay 80 | 10 70 Lost Part 70 | . 70 Squads Dispatched . | . . Investigation . | . . Extermination . | . . Reinforcement . | . . Assault . | . . Garrison . | . . Intercept . | . . Searches Triggered . | . . Construction Impeded . | . . Haulers Reinforced . | . . Active Scanning Responses . | . . Cargo Convoy Interrupts . | . . Stealth | -11 -10 --------- Run | Yrd Mat Distress Signals . | . . Communications Jammed . | . . Distress Signals . | . . Times Spotted 13 | . 13 Peak Tracking Total 5 | . 5 Tactical Retreats 2 | . 2 Traps | -11 -10 ------- Run | Yrd Mat Traps Triggered . | . . Indirectly . | . . Trap Hack Attempts . | . . Triggered . | . . Disarmed . | . . Reprogrammed . | . . Reused . | . . Traps Extracted . | . . Installed . | . . Triggered . | . . Machines | -11 -10 ---------- Run | Yrd Mat Machines Disabled . | . . Max in Single Turn . | . . Machines Repaired . | . . Machines Dismantled . | . . Machines Sabotaged . | . . Overloaded Fab Kills . | . . Hacking | -11 -10 --------- Run | Yrd Mat Machines Accessed . | . . Terminals . | . . Fabricators . | . . Repair Stations . | . . Recycling Units . | . . Scanalyzers . | . . Garrison Access . | . . Total Hacks . | . . Successful . | . . Failed . | . . Catastrophic . | . . Database Lockouts . | . . Manual . | . . Terminals . | . . Fabricators . | . . Repair Stations . | . . Recycling Units . | . . Scanalyzers . | . . Garrison Access . | . . Terminal Hacks . | . . Fabricator Hacks . | . . Repair Station Hacks . | . . Recycling Unit Hacks . | . . Scanalyzer . | . . Garrison Access Hacks . | . . Unauthorized Hacks . | . . Terminals . | . . Fabricators . | . . Repair Stations . | . . Recycling Units . | . . Scanalyzers . | . . Garrison Access . | . . Data Cores Recovered . | . . Used . | . . Hacking Detections . | . . Full Trace Events . | . . Feedback Events . | . . Feedback Blocked . | . . Robot Schematics Acquired . | . . Robots Built . | . . Authchips . | . . Time . | . . Total Robot Build Rating . | . . Part Schematics Acquired . | . . Parts Built . | . . Authchips . | . . Time . | . . Total Part Build Rating . | . . Part Studies Acquired . | . . Parts Repaired . | . . Time . | . . Parts Recycled . | . . Recycled Matter . | . . Retrieved Matter . | . . Retrieved Components . | . . Parts Scanalyzed . | . . Part Schematics Acquired . | . . Parts Damaged . | . . Bothacking | -11 -10 ------------ Run | Yrd Mat Used RIF Installer . | . . Robots Hacked . | . . Non-combat . | . . Combat . | . . Robot Hacks Applied . | . . Relay Couplers Released . | . . Fabnet Peak Effective % . | . . Robots Rewired . | . . Allies Hacked . | . . Hacks Repelled . | . . Allies | -11 -10 -------- Run | Yrd Mat Total Allies . | . . Largest Group . | . . Highest-Rated Group . | . . Highest-Rated Ally . | . . Total Orders . | . . Ally Attacks . | . . Total Damage . | . . Kills . | . . Allies Corrupted . | . . Allies Melted . | . . Intel | -11 -10 ------- Run | Yrd Mat Active Infowar (turns) 480 | 96 384 Terrain 480 | 96 384 Robot Analysis Total . | . . Derelict Logs Recovered . | . . Drone Launches . | . . Drone Recoveries . | . . Exploration | -11 -10 ------------- Run | Yrd Mat Turns Passed 592 | 208 384 Spaces Moved 237 | 109 128 Core 5 | 5 . Treads 231 | 104 127 Legs 1 | . 1 Wheels . | . . Hover . | . . Flight . | . . Fastest Speed 50 | 50 120 Average Speed 157 | 154 159 Slowest Speed 160 | 160 160 Overloaded Moves . | . . Propulsion Burnouts . | . . Robots Hopped . | . . Potential Cave-ins . | . . Cave-ins Triggered . | . . Exploration Rate (%) 9 | 4 15 Regions Visited 1 Branch Regions . Pre-discovered Areas . | . . Known Exits Taken . | . . Unknown Exits Taken 1 | 1 . Scrap Searched . | . . Spaces Dug . | . . Terrain Destroyed . | . . Melee . | . . Projectile . | . . AOE . | . . Terrain Rammed . | . . Walls Destroyed . | . . Machines Disabled . | . . Actions | -11 -10 --------- Run | Yrd Mat Total 339 | 130 209 Wait 3 | . 3 Move 236 | 108 128 Hop . | . . Pick Up 9 | 6 3 Fast Attach 7 | 7 . Attach 7 | . 7 Detach . | . . Swap 8 | 1 7 Drop 1 | . 1 Fire 56 | 8 48 Melee . | . . Ram . | . . Kick 11 | . 11 Crush 1 | . 1 Escape Stasis . | . . Rewire . | . . Trap . | . . Miscellaneous . | . . Route ------- -11/Scrapyard -10/Materials History --------- Turn | Location | Event 5 | -11/Scrapyard | Discovered new exit (range 15) 209 | -11/Scrapyard | Entered Materials 315 | -10/Materials | Build established: Mutant 480 | -10/Materials | Core integrity fell below 50% 562 | -10/Materials | Core integrity fell below 20% 593 | -10/Materials | Destroyed by G-47 Trooper with Particle Gun Last Messages --------------- K-01 Serf collects debris. K-01 Serf destroyed. Acquired 27 matter. K-01 Serf collects debris. Acquired 1 matter. Lgt. Treads destroyed. Assault Rifle destroyed. Critical hit (Burn: +37). R-06 Scavenger collects Lgt. Ion Engine. Kicked G-47 Trooper out of the way. Lgt. Ion Engine destroyed. Kicked G-47 Trooper. R-06 Scavenger collects Broken Ion Engine. Kicked G-47 Trooper. Critical hit (Burn: +37). Kicked G-47 Trooper. Kicked G-47 Trooper out of the way. K-01 Serf collects debris. Kicked G-47 Trooper out of the way. Kicked G-47 Trooper. Map ----- +----------------------------------------------------+ | ?????????????????????????????????????????????????? | | ?????????????????????????????????????????????????? | | ?????????????????????????????????????????????????? | | ?????????????????????????????????????????????????? | | ?????????????????????????????????????????????????? | | ?????????????????????????????????????????????????? | | ?????????????????????????????????????????????????? | | ?????????????????????????????????????????????????? | | ?????????????????????????????????????????????????? | | ???????????????#???? ??? ?????????????????????? | | ??????????????????# """ ?????????????????????? | | ??????????????????# """ "?"??????????????????? | | ?????????##????#??# ?? ?????????????????? | | ??????????????????# ? ???? ??????????????? | | ??#???????????????#^^^^ ^#???##?#??????????????? | | ???????????? ???? # # ????? ??????????????? | | ?????# ?????????? # #?? ??????????????????? | | ?????# ??#????"???+ r # ?"???#?? ??????????? | | ????## #????"??""?? #??"?????# ???????????? | | ?#???# ?????????????# #?? ?? ??????????????? | | ????## ?##? ??????#?# #????????#? ? ????????? | | ?????# #?????? ?????# #?????????????????????? | | ?#???# ############## ###############+??????? | | ?????# ?????? | | ???#?# g%[ w ?????? | | ?????# %=@g ?????? | | ?????# #################/### #####???????????? | | ?????# ##?????###### [%k#??? ##?????#????????? | | ?????# #???#?## # #??????###???????????? | | ????## ######## # #?? ???#?????????????? | | ?#?### # # ! ##???????#???????????? | | ?#???# + + #?????#???? ?????????? | | ???#?# # # #?? ??????? ?????????? | | ?????# ###+##+#############????????????????????? | | ?????# # #?????#?????? ????????????????? | | ??##?# #| #?????##??#????#??????????????? | | ??#??# #| #?????#???#???????????????????? | | ?#???#####|| #?#?#???#?? ?????????????????? | | ??#??###?# #???#?????????? ? ????????????? | | ????#??#?# ##?????##??? ?????????????????? | | ?????????# #????#??#?????????????????????? | | ?????#???# ##??????????? ????????????????? | | ??#?#??#?###########??###????????????????????????? | | ??????????????#?????????##???????????????????????? | | ?????????????????????????????????????????????????? | | ????#??#?????????????????????????????????????????? | | | | | | | | | +----------------------------------------------------+ Best States ------------- Heat Dissipation 25 Energy Generation 10 Energy Capacity 250 Matter Stores 300 Matter Capacity 300 Sight Range 16 Terrain Scan Range 16 Terrain Scan Density 10 Evasion (%) 40 Recoil Reduction 2 Item Schematics ----------------- None Robot Schematics ------------------ None Fabricated ------------ Nothing Repaired ---------- Nothing Studied --------- None Alien Tech Used ----------------- None Achievements -------------- None Challenges ------------ None Game ------ Seed CargoSpectralSuit Manual? 0 Play Time 00:08:08 Cumulative 1.5 hours Start 2025.11.02 @ 14:35:26 End 2025.11.02 @ 14:41:59 Sessions 1 Manual Loads 0 Difficulty Rogue Special Mode None Game No. 4 Rogue 4 Adventurer 0 Explorer 0 Win Type - Total 0 Types 0/0/0/0/0/0/0/0/0/0 Lore% 0 Gallery% 2 Achievement% 5 Wizard Run 0 Options --------- Layout 1 ASCII 0 Keyboard 1 Movement Arrows Keybinds 0 Fullscreen 1 Font 24/Smallcaps Map View 25x17 Zoom Use 100% Tactical HUD 0 Map Filters NONE Filters NONE Steam 1 RUN: c5699218-364e-4383-b65e-8fd80c3e6c79